bitfinex/quotes_ETHUSD_20251008
["timestamp","ask_amount","ask_price","bid_price","bid_amount"]
[1759940133561,0.50538358,4460.7,4460.1,0.01]
[1759940133763,2.557,4461.7,4460.1,0.011]
[1759940133930,1.92,4460.5,4460.1,0.011]
[1759940134136,2.24205192,4460.2,4460.1,0.011]
[1759940134338,0.4583,4460.4,4460.1,0.011]
[1759940134671,3.0143,4461.0,4460.1,0.011]
[1759940134836,2.2418509,4460.6,4460.1,0.011]
[1759940135038,2.2418945,4460.6,4460.1,0.011]
[1759940135572,2.24180415,4460.7,4460.1,0.011]
[1759940135868,0.4583,4461.7,4460.1,0.13342102]
[1759940136041,0.4583,4461.7,4460.2,2.656]
[1759940136241,0.4583,4461.7,4460.3,0.2894521]
[1759940136476,0.002,4461.9,4460.4,0.12241951]
[1759940136637,0.002,4461.9,4461.2,2.24154479]
[1759940137168,0.002,4461.9,4461.4,2.24142552]
[1759940137468,0.002,4461.9,4461.0,2.563]
[1759940137654,0.002,4461.9,4461.1,2.24159268]
[1759940138469,0.002,4461.9,4461.2,2.24154175]
[1759940138672,0.002,4461.9,4461.1,2.24159438]
[1759940138975,2.24320131,4461.9,4461.1,2.24159438]
[1759940139140,0.002,4461.9,4461.2,2.24154748]
[1759940139335,0.112,4461.7,4461.0,2.675]
[1759940139867,2.2413882,4461.6,4461.0,2.675]
[1759940140067,2.24142035,4461.5,4461.0,2.674]
[1759940140268,0.30361882,4461.6,4461.0,0.112]
[1759940140486,0.112,4461.7,4461.0,0.112]
[1759940140777,2.35330661,4461.7,4461.0,0.112]
[1759940140979,0.6808,4461.8,4460.0,0.20509999]
[1759940141158,2.35350334,4461.3,4460.5,0.112]
[1759940141339,1.92,4461.2,4460.5,0.112]
[1759940141546,2.4903,4461.3,4460.5,0.112]
[1759940141753,0.112,4461.3,4460.8,2.24174216]
[1759940141953,0.112,4461.3,4460.6,0.0224185]
[1759940142147,0.112,4461.3,4461.0,2.24164883]
[1759940142484,0.114,4461.9,4461.2,0.112]
[1759940142787,0.114,4461.9,4461.3,2.24145955]
[1759940143293,0.114,4461.9,4461.5,2.24139462]
[1759940143585,0.002,4461.9,4461.6,2.35333493]
[1759940143884,0.002,4461.9,4461.6,0.112]
[1759940145161,0.002,4461.9,4461.7,2.24129133]
[1759940145488,0.002,4461.9,4461.6,2.35334069]
[1759940145653,0.002,4461.9,4461.6,2.3533449]
[1759940145990,0.002,4461.9,4461.7,2.562]
[1759940146175,0.002,4461.9,4461.7,2.662]
[1759940146355,0.002,4461.9,4461.8,2.34124792]
[1759940146552,0.002,4461.9,4461.8,2.47566039]
[1759940146957,0.002,4461.9,4461.8,2.35324792]
[1759940147154,0.002,4461.9,4461.8,2.45324792]
[1759940148167,0.002,4461.9,4460.7,0.1]
[1759940148368,0.002,4461.9,4461.0,0.1]
[1759940148687,0.002,4461.9,4461.8,2.24124792]
[1759940148860,0.002,4461.9,4461.8,4.80424792]
[1759940149062,0.002,4461.9,4461.8,4.90424792]
[1759940150495,0.002,4461.9,4461.8,0.1]
[1759940150800,0.002,4461.9,4461.8,4.80424792]
[1759940151092,0.002,4461.9,4461.8,4.90424792]
[1759940151297,0.002,4461.9,4461.8,4.80424792]
[1759940151687,0.002,4461.9,4461.8,2.34124792]
[1759940151902,0.002,4461.9,4461.8,2.563]
[1759940152102,0.002,4461.9,4461.8,4.80424792]
[1759940152306,0.002,4461.9,4461.2,0.1]
[1759940152508,0.002,4461.9,4460.9,0.1]
[1759940152673,0.002,4461.9,4460.3,0.45435674]
[1759940152674,0.4438,4461.8,4460.3,2.24198416]
[1759940153006,2.24152771,4461.3,4461.1,0.001]
[1759940153210,1.92,4461.5,4461.1,0.001]
[1759940153211,2.24145087,4461.4,4461.1,0.001]
[1759940153386,1.92,4461.6,4461.1,0.001]
[1759940153387,2.24150559,4461.3,4461.1,0.001]
[1759940153572,0.29029066,4461.7,4461.1,0.001]
[1759940153771,2.24144277,4461.5,4461.1,0.001]
[1759940153972,2.24151871,4461.3,4461.1,0.001]
[1759940154172,2.1574,4461.9,4461.1,0.001]
[1759940154398,0.4275,4461.3,4461.1,0.001]
[1759940154602,4.16154935,4461.2,4461.1,0.001]
[1759940154798,5.27209975,4461.2,4461.1,0.001]
[1759940155002,0.6830504,4461.2,4461.1,0.001]
[1759940155173,0.4275,4461.6,4461.1,0.001]
[1759940155374,2.24142781,4461.5,4461.1,0.001]
[1759940155575,2.24154935,4461.2,4461.1,0.001]
[1759940155985,4.58904935,4461.2,4461.1,0.001]
[1759940156291,4.58904935,4461.2,4461.0,0.20509999]
[1759940156292,2.2415996,4461.1,4461.0,0.20509999]
[1759940156497,2.5536,4461.0,4460.1,0.011]
[1759940156715,2.24185087,4460.6,4460.1,0.011]
[1759940156897,4.16185087,4460.6,4460.1,0.011]
[1759940157082,2.24205192,4460.2,4460.1,0.011]
[1759940157482,4.58955192,4460.2,4460.1,0.011]
[1759940157715,5.90630225,4460.2,4460.1,0.011]
[1759940158720,8.46930225,4460.2,4460.1,1e-08]
[1759940160218,5.90630225,4460.2,4460.1,1e-08]
[1759940160722,8.46930225,4460.2,4460.1,1e-08]
[1759940161896,8.46930225,4460.2,4458.8,0.001]
[1759940161897,16.76561905,4459.7,4458.8,0.001]
[1759940162098,2.24255471,4459.2,4458.8,0.001]
[1759940162303,7.36015471,4459.2,4459.1,1e-08]
[1759940162602,7.78765471,4459.2,4459.1,1e-08]
[1759940163490,16.76602136,4458.9,4458.8,0.001]
[1759940163692,18.68602136,4458.9,4458.8,0.001]
[1759940163918,23.60132472,4458.9,4458.8,0.001]
[1759940164124,21.03732472,4458.9,4458.8,0.001]
[1759940164330,23.60232472,4458.9,4458.8,0.001]
[1759940165603,2.24235357,4459.6,4458.8,0.001]
[1759940165604,1.11065033,4460.2,4458.8,0.001]
[1759940165909,0.4275,4459.6,4458.8,0.001]
[1759940166116,2.66986913,4459.6,4458.8,0.001]
[1759940166319,4.16241299,4459.5,4458.8,0.001]
[1759940166539,2.24241299,4459.5,4458.8,0.001]
[1759940166709,0.4275,4459.6,4458.8,0.001]
[1759940166710,2.24249627,4459.4,4458.8,0.001]
[1759940166909,2.66985892,4459.6,4458.8,0.001]
[1759940166910,2.24240495,4459.5,4458.8,0.001]
[1759940167110,2.24246864,4459.4,4458.8,0.001]
[1759940167506,1.92,4459.5,4458.8,0.001]
[1759940167740,0.4275,4459.6,4458.8,0.001]
[1759940168041,2.24239393,4459.6,4458.8,0.001]
[1759940168218,0.2354,4459.8,4458.8,0.001]
[1759940168545,0.4275,4460.1,4458.8,0.001]
[1759940168546,2.24216332,4460.0,4458.8,2.46810082]
[1759940168703,0.4275,4460.5,4458.8,0.5324785]
[1759940168912,0.112,4459.8,4459.1,0.112]
[1759940169112,2.032,4459.8,4459.1,0.112]
[1759940169453,0.112,4459.8,4459.1,2.3546032]
[1759940169609,0.112,4459.8,4459.1,0.13442605]
[1759940170013,0.112,4459.8,4459.4,2.24245354]
[1759940170234,0.112,4459.8,4459.1,0.112]
[1759940170438,0.112,4459.8,4459.1,0.4597745]
[1759940170621,0.112,4459.8,4459.2,2.24255471]
[1759940171536,0.112,4459.8,4459.4,2.24242203]
[1759940171716,0.112,4459.8,4459.3,2.24248976]
[1759940172042,0.112,4459.8,4459.1,0.13442605]
[1759940172228,0.112,4459.8,4459.5,2.24240195]
[1759940172542,0.112,4459.8,4459.7,2.24230329]
[1759940173051,0.01,4460.9,4459.5,0.44849567]
[1759940173052,2.24182471,4460.7,4459.5,2.69089059]
[1759940173257,0.112,4460.2,4459.9,2.24218724]
[1759940173438,0.112,4460.2,4460.0,2.574]
[1759940173611,0.112,4460.2,4460.0,4.81615226]
[1759940174356,0.112,4460.2,4460.0,4.81614477]
[1759940174842,0.01,4460.9,4460.1,2.44820219]
[1759940175014,0.112,4460.4,4460.1,0.2061]
[1759940175209,0.112,4460.4,4460.2,0.3071]
[1759940175431,0.122,4460.9,4460.2,0.112]
[1759940175613,0.122,4460.9,4460.2,2.35401401]
[1759940175824,0.122,4460.9,4460.3,2.24199532]
[1759940176546,0.122,4460.9,4460.2,0.13442051]
[1759940176717,0.122,4460.9,4460.2,2.35402704]
[1759940176916,0.4275,4460.8,4460.0,2.574]
[1759940177152,0.112,4460.6,4460.0,2.574]
[1759940177315,0.112,4460.6,4460.0,4.81613242]
[1759940177639,0.01,4460.9,4460.3,2.24199528]
[1759940177843,0.122,4460.9,4460.3,2.24196439]
[1759940179247,0.122,4460.9,4460.5,2.24185873]
[1759940179914,0.122,4460.9,4460.4,2.24194553]
[1759940180111,0.122,4460.9,4460.2,0.112]
[1759940180315,0.122,4460.9,4460.6,2.24180504]
[1759940180617,0.122,4460.9,4460.7,2.572]
[1759940180818,0.122,4460.9,4460.2,0.112]
[1759940180819,0.4275,4460.8,4460.2,0.112]
[1759940181125,0.112,4460.4,4459.3,0.112]
[1759940181327,0.112,4460.0,4459.4,1.972]
[1759940182044,0.112,4460.0,4459.3,0.112]
[1759940182244,0.6629,4459.9,4459.5,2.572]
[1759940182423,0.6629,4459.9,4459.3,0.112]
[1759940182424,0.4275,4459.8,4459.3,0.112]
[1759940182629,0.112,4459.6,4459.4,2.12]
[1759940183025,0.4275,4459.5,4459.4,2.12]
[1759940183551,0.112,4459.6,4459.0,2.24265042]
[1759940183727,0.112,4459.6,4458.9,0.112]
[1759940183728,0.112,4459.6,4459.1,4.81458784]
[1759940183919,0.112,4459.6,4459.1,2.24258784]
[1759940184122,0.112,4459.6,4459.2,2.572]
[1759940185347,0.112,4459.6,4458.9,0.112]
[1759940185646,0.112,4459.6,4459.0,2.571]
[1759940186048,0.112,4459.6,4459.0,4.81364963]
[1759940186249,0.0938122,4459.4,4459.1,2.1535]
[1759940186448,0.473,4462.7,4459.1,2.1535]
[1759940186449,0.012,4461.9,4459.4,1.92]
[1759940186672,0.012,4461.9,4460.0,2.24212736]
[1759940186859,0.012,4461.9,4460.8,2.24175035]
[1759940187036,0.012,4461.9,4460.8,0.4707753]
[1759940187236,0.7092,4461.7,4460.8,1.92]
[1759940187437,0.473,4461.5,4460.8,2.61]
[1759940187661,0.2362,4461.7,4459.7,0.1397]
[1759940187662,2.71454826,4461.3,4459.7,0.1397]
[1759940187866,0.473,4460.8,4459.0,0.1397]
[1759940188051,0.473,4460.8,4459.8,2.24221477]
[1759940188441,0.6336,4461.6,4460.2,2.24202524]
[1759940188647,0.473,4461.3,4459.9,2.61]
[1759940188855,2.25170519,4460.9,4460.0,2.24214201]
[1759940189162,0.01,4460.9,4460.3,2.24199846]
[1759940189363,0.012,4460.9,4460.2,2.24203471]
[1759940189538,0.012,4460.9,4460.3,4.85099635]
[1759940189739,0.012,4460.9,4460.5,2.24185654]
[1759940189939,0.012,4460.9,4460.4,2.26435996]
[1759940190139,0.012,4460.9,4460.4,0.02241951]
[1759940190765,0.012,4460.9,4460.7,2.24175474]
[1759940190959,0.012,4460.9,4460.6,2.2418448]
[1759940191267,0.012,4460.9,4460.6,0.70928321]
[1759940191466,0.012,4460.9,4460.3,2.609]
[1759940192284,0.012,4460.9,4460.4,0.02241951]
[1759940192441,0.012,4460.9,4460.7,2.2417936]
[1759940192642,0.012,4460.9,4460.5,2.24190113]
[1759940193058,0.012,4460.9,4460.6,2.24184168]
[1759940193262,0.012,4460.9,4460.6,0.7092838]
[1759940193462,0.012,4460.9,4460.8,2.24175035]
[1759940193653,0.012,4460.9,4460.8,4.84775035]
[1759940194092,0.012,4460.9,4460.8,4.98745035]
[1759940194497,0.012,4460.9,4459.8,0.22422148]
[1759940194652,0.012,4460.9,4459.9,2.7457]
[1759940194853,0.012,4460.9,4460.8,2.24175035]
[1759940195149,0.012,4460.9,4460.8,4.84675035]
[1759940196292,0.012,4460.9,4460.8,4.95875035]
[1759940196648,0.012,4460.9,4460.8,5.09845035]
[1759940196850,0.012,4460.9,4460.8,5.83247815]
[1759940197178,0.012,4460.9,4460.8,5.69177815]
[1759940197379,0.012,4460.9,4460.8,0.112]
[1759940197679,0.012,4460.9,4460.8,4.95775035]
[1759940197918,0.012,4460.9,4460.8,5.09745035]
[1759940200673,0.012,4460.9,4460.8,4.98545035]
[1759940201581,0.00030578,4460.9,4460.8,4.98545035]
[1759940202003,0.00030578,4460.9,4460.8,9.03634445]
[1759940202206,0.00030578,4460.9,4460.8,9.66994445]
[1759940202411,0.012,4461.9,4461.8,2.24124792]
[1759940202598,0.012,4461.9,4461.8,4.84124792]
[1759940202783,0.012,4461.9,4461.8,4.98104792]
[1759940202986,0.012,4461.9,4461.8,5.70328471]
[1759940206190,0.012,4461.9,4461.8,3.10328471]
[1759940206385,0.012,4461.9,4461.8,5.70228471]
[1759940206724,0.012,4461.9,4461.8,0.86203679]
[1759940206934,0.012,4461.9,4461.8,4.83824792]
[1759940207099,0.012,4461.9,4460.7,0.1398]
[1759940207287,0.012,4461.9,4461.5,2.24135967]
[1759940207494,0.012,4461.9,4461.6,4.86075205]
[1759940207695,0.012,4461.9,4461.7,2.597]
[1759940207956,0.012,4461.9,4461.8,0.02241247]
[1759940208098,0.012,4461.9,4461.3,2.24148897]
[1759940208296,0.012,4461.9,4461.4,2.61941448]
[1759940208601,0.012,4461.9,4461.4,2.7368]
[1759940208805,0.012,4461.9,4461.5,0.1398]
[1759940209008,0.012,4461.9,4461.8,2.24124792]
[1759940209321,0.012,4461.9,4461.8,4.83724792]
[1759940209626,0.012,4461.9,4461.8,5.69888755]
[1759940209994,0.012,4461.9,4461.8,2.96308755]
[1759940210196,0.012,4461.9,4461.8,5.56008755]
[1759940210521,0.012,4461.9,4461.8,5.69988755]
[1759940210711,0.012,4461.9,4461.8,5.81188755]
[1759940211035,0.012,4461.9,4461.8,5.81088755]
[1759940211539,0.012,4461.9,4461.8,3.21488755]
[1759940211753,0.012,4461.9,4461.8,4.94824792]
[1759940212239,0.012,4461.9,4461.8,4.94924792]
[1759940213496,0.012,4461.9,4461.8,5.08904792]
[1759940213994,0.012,4461.9,4461.8,5.08804792]
[1759940214620,0.012,4461.9,4461.8,4.94724792]
[1759940215890,0.012,4461.9,4461.8,5.67908498]
[1759940216196,0.012,4461.9,4461.8,0.112]
[1759940216395,0.012,4461.9,4461.8,2.705]
[1759940217658,0.6623,4461.9,4460.2,0.6336]
[1759940217859,2.24165507,4461.0,4460.0,1.829]
[1759940218078,2.24165507,4461.0,4459.3,0.1408]
[1759940218079,2.24175035,4460.8,4459.3,0.001]
[1759940218225,0.4321,4460.9,4459.4,2.592]
[1759940218226,2.24195335,4460.4,4459.4,2.592]
[1759940218428,2.24185087,4460.6,4459.4,2.592]
[1759940218665,0.4321,4460.7,4459.4,2.592]
[1759940218974,2.24225771,4459.8,4459.3,0.001]
[1759940219174,2.24215618,4460.0,4459.3,0.001]
[1759940219484,0.4321,4460.4,4459.3,0.02342504]
[1759940219765,0.4321,4460.4,4459.3,0.001]
[1759940219941,2.24205567,4460.2,4459.4,2.24243749]
[1759940220140,2.2416428,4461.1,4459.3,0.001]
[1759940220141,0.4321,4460.8,4459.5,0.02242403]
[1759940220365,2.24081307,4462.7,4460.0,2.24210635]
[1759940220366,0.4321,4461.4,4460.0,2.24210635]
[1759940220575,2.24182627,4460.7,4459.9,2.591]
[1759940220768,2.591,4461.7,4459.4,4.83344808]
[1759940220769,2.24199608,4460.4,4459.4,4.83344808]
[1759940221066,2.2420939,4460.2,4459.4,2.591]
[1759940221277,2.24216894,4460.0,4459.4,2.591]
[1759940221569,2.24232809,4459.7,4459.3,0.001]
[1759940221870,2.24225301,4459.8,4459.3,0.001]
[1759940222074,2.24235643,4459.6,4459.3,0.001]
[1759940222367,2.24240997,4459.5,4459.3,0.001]
[1759940222962,2.67446127,4459.6,4459.3,0.001]
[1759940223363,0.4321,4461.2,4460.0,2.24214515]
[1759940223562,0.4321,4461.2,4459.4,14.22148744]
[1759940223563,0.4321,4461.2,4459.9,2.59]
[1759940223779,2.24185947,4460.6,4459.9,2.59]
[1759940223958,1.92,4461.5,4459.9,2.59]
[1759940224144,0.4321,4460.6,4459.9,2.59]
[1759940224364,2.67399736,4460.6,4459.9,2.59]
[1759940224695,0.4321,4460.6,4459.9,4.83219535]
[1759940224866,0.4321,4460.6,4459.9,2.59]
[1759940225067,0.4321,4460.6,4459.3,0.001]
[1759940225280,2.2420081,4460.3,4459.5,2.59]
[1759940225668,0.4321,4460.3,4459.3,0.001]
[1759940226269,2.24240851,4459.5,4459.3,0.001]
[1759940226471,2.24245414,4459.4,4459.3,0.001]
[1759940226661,3.11699955,4459.4,4459.3,0.001]
[1759940226863,0.87454541,4459.4,4459.3,0.001]
[1759940227080,0.4321,4460.1,4459.3,0.001]
[1759940227278,0.4321,4460.5,4459.3,0.001]
[1759940227575,0.4321,4460.5,4459.4,0.001]
[1759940227782,0.112,4460.2,4459.5,0.112]
[1759940227967,0.5441,4460.8,4460.0,0.112]
[1759940228470,2.24184679,4460.7,4460.0,0.112]
[1759940228860,0.8226805,4460.8,4460.0,0.112]
[1759940229084,2.24206084,4460.2,4459.8,0.112]
[1759940229381,0.2182,4459.9,4459.5,0.112]
[1759940229588,0.4321,4459.8,4459.5,0.112]
[1759940230097,0.4321,4459.7,4459.4,0.001]
[1759940230295,2.78641261,4459.7,4459.4,0.001]
[1759940230497,2.24239488,4459.6,4459.4,0.001]
[1759940230670,2.67449488,4459.6,4459.4,0.001]
[1759940230866,2.67450385,4459.5,4459.4,0.001]
[1759940232909,3.17738595,4459.5,4459.4,0.001]
[1759940233062,0.9349821,4459.5,4459.4,0.001]
[1759940233268,0.112,4459.7,4459.4,0.001]
[1759940233981,2.24235778,4459.6,4459.4,0.001]
[1759940234582,2.24240385,4459.5,4459.4,0.001]
[1759940234983,2.67450385,4459.5,4459.4,0.001]
[1759940238375,5.89410385,4459.5,4459.4,0.001]
[1759940238575,5.89410385,4459.5,4459.1,1e-08]
[1759940238576,2.87615471,4459.2,4459.1,1e-08]
[1759940238777,2.8763056,4458.9,4458.8,0.001]
[1759940238992,2.87640619,4458.7,4457.1,0.01]
[1759940239284,4.79640619,4458.7,4457.1,0.01]
[1759940239482,4.59490619,4458.7,4457.1,0.01]
[1759940239687,6.3951329,4458.7,4457.1,2.25360216]
[1759940239916,6.3951329,4458.7,4457.1,0.01]
[1759940240205,5.7615329,4458.7,4457.2,2.24355994]
[1759940240403,5.7615329,4458.7,4457.3,2.24349417]
[1759940240575,8.3465329,4458.7,4457.1,0.01]
[1759940240973,8.9801329,4458.7,4457.1,0.01]
[1759940243218,23.06182034,4458.7,4457.1,0.01]
[1759940244300,6.3951329,4458.7,4457.1,0.01]
[1759940244505,8.9791329,4458.7,4457.1,2.25360577]
[1759940244726,8.9791329,4458.7,4457.1,0.01]
[1759940245696,8.9781329,4458.7,4457.1,0.01]
[1759940246323,6.3951329,4458.7,4458.1,0.011]
[1759940246536,8.9781329,4458.7,4458.1,0.011]
[1759940247206,0.002,4458.8,4458.1,0.011]
[1759940247902,0.002,4458.8,4458.1,2.25406331]
[1759940248094,0.002,4458.8,4458.1,0.011]
[1759940248294,0.002,4458.8,4458.3,0.113]
[1759940249099,0.002,4458.8,4458.3,2.35599918]
[1759940249298,0.002,4458.8,4458.3,0.113]
[1759940250031,2.672768,4458.8,4458.3,0.113]
[1759940250224,0.002,4458.8,4458.3,0.113]
[1759940250631,0.428,4458.7,4458.3,0.001]
[1759940250927,0.112,4458.7,4458.3,0.001]
[1759940251900,0.54,4458.7,4458.3,0.001]
[1759940252102,0.112,4458.7,4458.3,0.001]
[1759940252311,2.78280619,4458.7,4458.3,0.001]
[1759940252506,3.28555938,4458.7,4458.3,0.001]
[1759940255938,0.002,4458.8,4458.3,0.001]
[1759940256230,0.114,4458.8,4458.3,0.113]
[1759940256412,0.002,4458.8,4458.7,2.24280619]
[1759940256606,0.002,4458.8,4458.7,0.112]
[1759940256998,0.002,4458.8,4458.7,2.35480619]
[1759940257203,0.002,4458.8,4458.7,2.97800246]
[1759940257408,0.002,4458.8,4458.7,2.83720246]
[1759940257612,0.002,4458.8,4458.7,19.20973395]
[1759940257810,0.002,4458.8,4458.7,18.84526184]
[1759940258011,0.002,4458.8,4458.7,5.20083413]
[1759940258600,0.002,4458.8,4458.7,2.24280619]
[1759940259537,0.002,4458.8,4458.7,2.40603425]
[1759940260538,0.002,4458.8,4458.7,2.38360619]
[1759940261907,0.002,4458.8,4458.7,2.40603425]
[1759940262303,0.002,4458.8,4458.7,2.38360619]
[1759940262536,0.002,4458.8,4458.7,5.26169468]
[1759940265144,0.002,4458.8,4458.7,7.83869468]
[1759940265441,0.002,4458.8,4458.7,4.30360619]
[1759940265742,0.002,4458.8,4458.7,6.73980619]
[1759940266123,0.002,4458.8,4458.7,2.577]
[1759940266629,0.002,4458.8,4458.6,0.001]
[1759940266830,0.002,4458.8,4458.7,2.577]
[1759940267631,0.002,4458.8,4458.7,2.689]
[1759940267843,0.002,4458.8,4458.7,4.93180619]
[1759940268136,0.002,4458.8,4458.7,5.79028215]
[1759940269314,0.002,4458.8,4458.7,5.07260619]
[1759940270846,0.002,4458.8,4458.7,2.35480619]
[1759940271144,0.002,4458.8,4458.7,4.92980619]
[1759940272255,0.002,4458.8,4458.7,2.687]
[1759940272922,0.002,4458.8,4458.7,4.92980619]
[1759940273949,0.002,4458.8,4458.6,0.001]
[1759940274250,0.22646584,4458.8,4458.6,0.001]
[1759940274553,2.67170619,4458.7,4458.6,0.001]
[1759940275314,2.2429068,4458.5,4458.3,0.001]
[1759940275519,2.24295711,4458.4,4458.3,0.001]
[1759940275752,1.922,4458.8,4458.3,0.001]
[1759940275939,0.4289,4458.4,4458.3,0.001]
[1759940276131,2.90674711,4458.4,4458.3,0.001]
[1759940281447,2.2428565,4458.6,4458.3,0.001]
[1759940281651,2.575,4458.8,4458.3,0.001]
[1759940281852,2.24285057,4458.7,4458.3,0.001]
[1759940282157,2.24291172,4458.5,4458.3,0.001]
[1759940282940,0.4289,4458.7,4458.3,0.001]
[1759940283242,2.24295711,4458.4,4458.3,0.001]
[1759940283445,2.93904282,4458.4,4458.3,0.001]
[1759940285555,5.51104282,4458.4,4458.3,0.001]
[1759940285926,6.14464282,4458.4,4458.3,0.001]
[1759940286126,2.87665773,4458.2,4458.1,1e-08]
[1759940286331,4.79665773,4458.2,4458.1,1e-08]
[1759940286666,6.4918235,4458.2,4458.1,1e-08]
[1759940286872,6.18716577,4458.2,4458.1,1e-08]
[1759940287037,8.4302235,4458.2,4458.1,1e-08]
[1759940287636,9.0638235,4458.2,4458.1,1e-08]
[1759940289430,6.4918235,4458.2,4458.1,1e-08]
[1759940289626,5.8582235,4458.2,4458.1,1e-08]
[1759940290167,2.67195773,4458.2,4458.1,1e-08]
[1759940290465,0.112,4458.3,4458.1,1e-08]
[1759940290652,0.002,4458.8,4458.1,1e-08]
[1759940290860,2.3567692,4458.8,4458.1,1e-08]
[1759940291332,2.24280619,4458.7,4458.1,1e-08]
[1759940291734,2.24280896,4458.7,4458.1,1e-08]
[1759940291933,0.114,4458.8,4458.1,1e-08]
[1759940292431,2.24280619,4458.7,4458.1,1e-08]
[1759940292651,0.114,4458.8,4458.1,1e-08]
[1759940293070,0.4289,4458.7,4458.1,1e-08]
[1759940293271,2.24305773,4458.2,4458.1,1e-08]
[1759940293762,2.67195773,4458.2,4458.1,1e-08]
[1759940294581,0.53766076,4458.8,4458.1,1e-08]
[1759940294733,2.572,4458.8,4458.1,1e-08]
[1759940295159,4.81479249,4458.8,4458.1,1e-08]
[1759940295347,2.24289973,4458.6,4458.1,1e-08]
[1759940295763,2.24292144,4458.5,4458.1,1e-08]
[1759940296372,2.2428693,4458.6,4458.1,1e-08]
[1759940296883,0.002,4458.8,4458.2,2.24305773]
[1759940297186,2.24290149,4458.6,4458.1,1e-08]
[1759940297381,0.26734813,4458.8,4458.1,1e-08]
[1759940297762,2.24289281,4458.6,4458.1,1e-08]
[1759940297969,0.002,4458.5,4458.1,1e-08]
[1759940298568,2.24491932,4458.5,4458.1,1e-08]
[1759940298883,2.24299704,4458.4,4458.1,1e-08]
[1759940299087,2.24492196,4458.5,4458.1,1e-08]
[1759940300386,2.24296126,4458.4,4458.1,1e-08]
[1759940300758,2.24492043,4458.5,4458.1,1e-08]
[1759940301586,0.002,4458.5,4458.1,1e-08]
[1759940302787,0.002,4458.5,4458.4,2.24295711]
[1759940303086,0.002,4458.5,4458.4,2.87331127]
[1759940304093,0.002,4458.5,4458.4,5.3870817]
[1759940304385,0.002,4458.5,4458.4,5.5298817]
[1759940304956,0.000194,4458.5,4458.4,7.4498817]
[1759940305191,0.000194,4458.5,4458.4,8.0834817]
[1759940306890,0.002,4458.8,4458.7,2.24280619]
[1759940307060,0.002,4458.8,4458.7,5.40985507]
[1759940307394,0.002,4458.8,4458.7,3.25662082]
[1759940307556,0.002,4458.8,4458.7,6.87160619]
[1759940310252,0.002,4458.8,4458.7,7.50520619]
[1759940310456,0.01,4459.9,4459.2,4.79615471]
[1759940310695,0.01,4459.9,4459.2,21.25551167]
[1759940310883,0.01,4459.9,4459.2,21.39831167]
[1759940311084,0.01,4459.9,4459.2,23.65008212]
[1759940311589,0.01,4459.9,4459.2,9.12212516]
[1759940311792,0.01,4459.9,4459.2,6.87035471]
[1759940313075,0.01,4459.9,4459.2,4.30535471]
[1759940313278,0.01,4459.9,4459.2,4.16255471]
[1759940313465,0.01,4459.9,4459.2,6.89178025]
[1759940313655,0.01,4459.9,4459.2,6.86935471]
[1759940313859,0.01,4459.9,4459.2,7.78055271]
[1759940316001,0.01,4459.9,4459.2,5.86055271]
[1759940316669,0.002,4459.8,4459.2,5.86055271]
[1759940317198,0.6356,4459.3,4459.2,5.86055271]
[1759940317554,0.6356,4459.3,4459.2,5.97255271]
[1759940323001,0.01,4459.9,4459.8,2.24225301]
[1759940323002,1e-08,4459.9,4459.8,2.24225301]
[1759940323183,1e-08,4459.9,4459.8,19.56596293]
[1759940323502,1e-08,4459.9,4459.8,19.70876293]
[1759940324512,1e-08,4459.9,4459.8,5.61974584]
[1759940324678,1e-08,4459.9,4459.8,4.94705301]
[1759940325506,1e-08,4459.9,4459.8,4.80425301]
[1759940325921,1e-08,4459.9,4459.8,4.94705301]
[1759940329332,1e-08,4459.9,4459.8,5.3033575]
[1759940330218,1e-08,4459.9,4459.8,4.94705301]
[1759940330532,1e-08,4459.9,4459.8,5.66599046]
[1759940331397,0.63360001,4459.9,4459.8,3.10399046]
[1759940331615,0.63360001,4459.9,4459.8,5.66599046]
[1759940333042,0.63360001,4459.9,4459.8,5.05905301]
[1759940333482,0.63360001,4459.9,4459.8,2.8168]
[1759940333635,0.63360001,4459.9,4459.8,5.05905301]
[1759940333837,1e-08,4459.9,4459.8,4.94705301]
[1759940334436,1e-08,4459.9,4459.8,2.562]
[1759940334751,0.00200001,4459.9,4459.8,2.562]
[1759940335566,0.00200001,4459.9,4459.8,4.96947554]
[1759940335744,0.00200001,4459.9,4459.8,4.94705301]
[1759940335940,0.63560001,4459.9,4459.8,2.562]
[1759940336646,0.63560001,4459.9,4459.8,2.58442253]
[1759940337555,0.00200001,4459.9,4459.8,5.78602977]
[1759940337769,0.00200001,4459.9,4459.8,5.42972528]
[1759940337934,0.00200001,4459.9,4459.8,5.32972528]
[1759940338139,0.00200001,4459.9,4459.8,2.72492528]
[1759940338140,0.63560001,4459.9,4459.8,2.72492528]
[1759940338340,0.63560001,4459.9,4459.8,4.94705301]
[1759940339875,0.002,4460.2,4460.1,2.24210219]
[1759940340074,0.002,4460.2,4460.1,4.80410219]
[1759940340253,0.002,4460.2,4460.1,4.94690219]
[1759940340643,0.01,4461.9,4460.1,4.94690219]
[1759940340843,0.01,4461.9,4461.8,2.24124792]
[1759940341188,0.01,4461.9,4461.8,4.80324792]